bitfinex-derivatives/quotes_ETHF0:USTF0_20250909
["timestamp","ask_amount","ask_price","bid_price","bid_amount"]
[1757447931203,5.4694,4298.3,4298.2,6.54373956]
[1757447931592,6.0307,4298.3,4298.2,6.54373956]
[1757447931796,6.0307,4298.3,4298.2,5.10218956]
[1757447931999,6.0307,4298.3,4298.2,5.33618956]
[1757447932704,6.0307,4298.3,4298.2,5.67328956]
[1757447932902,6.0307,4298.3,4298.2,6.09203956]
[1757447933105,6.0307,4298.3,4298.2,6.31943882]
[1757447933705,6.0307,4298.3,4298.2,1.51943882]
[1757447934504,6.0307,4298.3,4298.2,1.10068882]
[1757447935106,6.0307,4298.3,4298.2,1.33508882]
[1757447935705,6.0307,4298.3,4298.2,0.52988882]
[1757447936005,6.0307,4298.3,4298.2,1.10068882]
[1757447937604,6.0307,4298.3,4298.2,0.86698882]
[1757447937802,6.0307,4298.3,4298.2,0.63298882]
[1757447938008,6.0307,4298.3,4298.2,0.52988882]
[1757447939306,6.0307,4298.3,4298.2,0.52988882]
[1757447939507,6.0307,4298.3,4298.2,0.86698882]
[1757447942712,6.0307,4298.3,4298.2,0.52988882]
[1757447943212,6.0307,4298.3,4298.2,0.29588882]
[1757447943415,6.0307,4298.3,4298.2,0.52988882]
[1757447943807,6.0307,4298.3,4298.2,0.86698882]
[1757447944415,6.0307,4298.3,4298.2,1.10068882]
[1757447945013,6.0307,4298.3,4298.2,1.75383882]
[1757447945714,5.4694,4298.3,4298.2,1.75383882]
[1757447945914,5.23,4298.3,4298.2,1.75383882]
[1757447946110,5.4501,4298.3,4298.2,1.75383882]
[1757447946311,6.0114,4298.3,4298.2,1.75383882]
[1757447946613,6.0114,4298.3,4298.2,6.55383882]
[1757447946816,5.6781,4298.3,4298.2,6.55383882]
[1757447947111,5.6781,4298.3,4298.2,1.10108882]
[1757447947307,10.0114,4298.3,4298.2,1.97717097]
[1757447947508,9.6781,4298.3,4297.9,33.508]
[1757447947711,5.6781,4298.3,4298.0,0.234]
[1757447947909,0.23266,4298.2,4298.0,0.234]
[1757447948111,5.79,4298.2,4298.0,0.234]
[1757447948620,4.0,4298.1,4297.9,33.508]
[1757447948810,9.15,4298.1,4298.0,0.234]
[1757447949012,4.0,4298.0,4297.9,33.508]
[1757447949312,8.88,4298.0,4297.9,33.742]
[1757447949512,9.11267001,4298.0,4297.9,33.742]
[1757447949714,8.88,4298.0,4297.9,33.742]
[1757447950208,8.88,4298.0,4297.1,3.2078]
[1757447950413,8.88,4298.0,4297.2,0.234]
[1757447950414,0.23269,4297.9,4297.2,0.234]
[1757447950617,5.13269,4297.9,4297.2,0.234]
[1757447950916,4.9,4297.9,4297.3,0.3371]
[1757447951116,4.9,4297.9,4297.4,0.234]
[1757447951314,4.9,4297.9,4297.5,0.3371]
[1757447951511,8.9,4297.9,4297.6,0.234]
[1757447951706,4.9,4297.9,4297.6,0.234]
[1757447956115,4.0,4297.8,4297.6,0.234]
[1757447956418,9.59,4297.8,4297.6,0.234]
[1757447956615,0.1463,4297.7,4297.6,0.234]
[1757447956817,5.0963,4297.7,4297.6,0.1995]
[1757447957622,5.0963,4297.7,4297.6,0.5601]
[1757447958420,5.0963,4297.7,4297.6,0.1995]
[1757447959109,5.0963,4297.7,4297.3,0.00349024]
[1757447959314,5.0618,4297.7,4297.4,0.234]
[1757447960109,3.2078,4297.6,4297.4,0.234]
[1757447960313,12.0078,4297.6,4297.4,0.234]
[1757447961219,12.2418,4297.6,4296.9,0.234]
[1757447961419,8.2418,4297.6,4296.9,0.234]
[1757447965021,8.0078,4297.6,4296.9,0.234]
[1757447967327,8.0078,4297.6,4297.0,0.7202]
[1757447967625,8.0078,4297.6,4297.0,0.1313]
[1757447968127,8.0078,4297.6,4296.6,0.3606]
[1757447968327,8.0078,4297.6,4296.6,0.5889]
[1757447968726,8.0078,4297.6,4296.7,0.3606]
[1757447968924,8.0078,4297.6,4296.7,0.5889]
[1757447969128,8.0078,4297.6,4296.8,0.5889]
[1757447969325,8.0078,4297.6,4297.0,0.1313]
[1757447969520,8.0078,4297.6,4297.0,0.4919]
[1757447969723,8.0078,4297.6,4297.2,0.3606]
[1757447969926,8.0078,4297.6,4297.5,0.9544]
[1757447970325,8.0078,4297.6,4297.5,0.7202]
[1757447970527,8.0078,4297.6,4297.5,0.4919]
[1757447970728,8.0078,4297.6,4297.4,0.234]
[1757447971320,8.0078,4297.6,4297.4,0.5946]
[1757447971836,8.0078,4297.6,4297.5,0.3606]
[1757447972630,8.0078,4297.6,4297.4,0.234]
[1757447973435,8.0078,4297.6,4297.5,0.4919]
[1757447975136,8.0078,4297.6,4297.5,0.81412598]
[1757447977037,8.0078,4297.6,4297.5,1.27662598]
[1757447980244,4.8,4297.6,4297.5,1.27662598]
[1757447985348,4.8,4297.6,4297.5,1.56709857]
[1757447986551,4.8,4297.6,4297.5,1.10459857]
[1757447987551,4.8,4297.6,4297.5,1.34679857]
[1757447989251,4.8,4297.6,4297.5,1.10459857]
[1757447991357,4.8,4297.6,4297.5,0.61269857]
[1757447991649,4.8,4297.6,4297.5,0.95009857]
[1757447991855,4.8,4297.6,4297.5,0.61269857]
[1757447992257,4.8,4297.6,4297.5,0.32222598]
[1757447992759,9.37152425,4297.6,4297.5,0.32222598]
[1757447995456,5.37152425,4297.6,4297.5,0.80332598]
[1757447996562,9.37152425,4297.6,4297.5,0.6066081]
[1757447998259,9.37152425,4297.6,4296.6,0.3374]
[1757447998462,3.2078,4296.7,4296.6,0.3374]
[1757447998764,8.7778,4296.7,4296.6,0.3374]
[1757447999059,8.7778,4296.7,4296.6,0.5796]
[1757447999362,5.57,4296.7,4296.6,0.5796]
[1757447999557,8.7778,4296.7,4296.6,0.3374]
[1757448000363,5.57,4296.7,4296.6,0.8173]
[1757448003860,8.7778,4296.7,4296.6,0.8173]
[1757448004655,5.57,4296.7,4296.6,0.8173]
[1757448005454,5.57,4296.7,4296.6,0.3374]
[1757448005862,8.7778,4296.7,4296.6,0.3374]
[1757448009764,8.7778,4296.7,4296.2,0.5714]
[1757448009963,8.7778,4296.7,4296.3,0.3374]
[1757448010471,8.7778,4296.7,4296.5,0.1437]
[1757448010771,8.7778,4296.7,4296.6,0.32024702]
[1757448011164,8.7778,4296.7,4296.6,0.65764702]
[1757448012770,8.7778,4296.7,4296.6,0.89984702]
[1757448013163,8.7778,4296.7,4296.6,0.65764702]
[1757448013972,8.7778,4296.7,4296.6,0.32024702]
[1757448016272,8.7778,4296.7,4296.6,0.89984702]
[1757448016782,8.7778,4296.7,4296.6,0.65764702]
[1757448018674,8.7778,4296.7,4296.6,0.32024702]
[1757448019780,13.34686579,4296.7,4296.0,0.4811]
[1757448019972,3.2078,4296.2,4296.0,0.4811]
[1757448020173,7.8978,4296.2,4295.8,0.3495]
[1757448020373,7.8978,4296.2,4295.7,0.234]
[1757448020572,7.8978,4296.2,4295.8,0.3495]
[1757448020777,7.8978,4296.2,4295.7,0.234]
[1757448021478,7.8978,4296.2,4295.7,0.4756]
[1757448021678,7.8978,4296.2,4295.8,0.3495]
[1757448022480,7.8978,4296.2,4295.7,0.234]
[1757448022784,7.8978,4296.2,4295.7,0.4756]
[1757448023074,7.8978,4296.2,4295.8,0.3495]
[1757448023472,7.8978,4296.2,4295.9,0.3495]
[1757448023669,7.8978,4296.2,4295.7,0.234]
[1757448023872,0.234,4296.1,4295.8,0.3495]
[1757448024081,5.624,4296.1,4295.5,0.1437]
[1757448024279,5.624,4296.1,4295.4,0.3495]
[1757448024280,3.2078,4295.6,4295.4,0.3495]
[1757448024587,8.3618,4295.6,4295.1,0.3495]
[1757448024789,8.3618,4295.6,4295.2,0.3495]
[1757448025077,8.3618,4295.6,4295.2,0.2416]
[1757448025286,8.3618,4295.6,4295.0,0.3853]
[1757448025480,3.2078,4295.1,4295.0,0.3853]
[1757448025780,8.1278,4295.1,4295.0,0.1437]
[1757448026080,8.1278,4295.1,4295.0,0.4932]
[1757448029780,8.1278,4295.1,4295.0,0.9701]
[1757448031689,8.1278,4295.1,4295.0,1.28692837]
[1757448042184,8.1278,4295.1,4295.0,0.31682837]
[1757448042694,8.3618,4295.1,4294.4,0.3495]
[1757448042895,3.2078,4294.6,4294.5,0.4834]
[1757448043199,8.4378,4294.6,4294.5,0.4834]
[1757448047296,8.4378,4294.6,4294.5,0.725]
[1757448048705,8.4378,4294.6,4294.5,0.9453]
[1757448050000,8.4378,4294.6,4294.1,0.234]
[1757448050196,8.4378,4294.6,4294.2,0.5841]
[1757448050396,8.4378,4294.6,4294.5,0.1443]
[1757448050695,8.4378,4294.6,4294.5,0.4892]
[1757448051303,8.6718,4294.6,4294.1,0.234]
[1757448051801,0.234,4294.5,4294.1,0.3449]
[1757448052094,5.644,4294.5,4294.1,0.3449]
[1757448052502,5.644,4294.5,4294.0,0.1339]
[1757448052701,3.2078,4294.1,4294.0,0.1339]
[1757448052899,7.9778,4294.1,4294.0,0.1339]
[1757448053296,7.9778,4294.1,4294.0,0.4788]
[1757448054502,7.9778,4294.1,4294.0,0.7284]
[1757448054703,7.9778,4294.1,4294.0,1.26864893]
[1757448057307,7.9778,4294.1,4294.0,1.26858142]
[1757448061808,7.9778,4294.1,4294.0,0.31988142]
[1757448062208,7.9778,4294.1,4294.0,0.66478142]
[1757448062710,7.9778,4294.1,4294.0,0.80908142]
[1757448063516,8.2118,4294.1,4293.5,0.1339]
[1757448063714,3.2078,4293.6,4293.0,0.1339]
[1757448064014,3.2078,4293.1,4293.0,0.4788]
[1757448064220,8.0678,4293.1,4293.0,0.4788]
[1757448064818,8.0678,4293.1,4293.0,0.718]
[1757448065714,8.0678,4293.1,4293.0,0.9383]
[1757448066912,8.0678,4293.1,4293.0,0.3449]
[1757448067314,8.0678,4293.1,4293.0,0.7284]
[1757448067512,8.0678,4293.1,4293.0,0.4892]
[1757448068517,8.0678,4293.1,4293.0,0.7284]
[1757448070625,8.0678,4293.1,4293.0,0.4892]
[1757448070813,8.0678,4293.1,4293.0,0.9487]
[1757448083835,8.0678,4293.1,4293.0,0.4892]
[1757448084135,8.0678,4293.1,4292.9,0.234]
[1757448085032,8.0678,4293.1,4292.9,0.5769]
[1757448085229,8.0678,4293.1,4292.8,0.17703856]
[1757448086827,0.234,4293.0,4292.8,0.17703856]
[1757448087027,5.224,4293.0,4292.8,0.17703856]
[1757448088630,0.234,4292.9,4292.8,0.17703856]
[1757448088830,5.884,4292.9,4292.8,0.17703856]
[1757448089534,5.884,4292.9,4292.8,0.51993856]
[1757448089735,5.65,4292.9,4292.8,0.75073856]
[1757448094239,5.65,4292.9,4292.8,0.51993856]
[1757448098043,5.65,4292.9,4292.8,0.17703856]
[1757448099634,5.884,4292.9,4292.8,0.17703856]
[1757448099842,10.68572258,4292.9,4291.6,0.3429]
[1757448100138,10.68572258,4292.9,4291.1,2.0888843]
[1757448100139,3.2078,4291.7,4291.1,0.3429]
[1757448100332,3.2078,4291.2,4291.1,0.3429]
[1757448100540,7.8878,4291.2,4291.1,0.5737]
[1757448101343,7.8878,4291.2,4291.1,0.3429]
[1757448102938,7.8878,4291.2,4291.1,0.5737]
[1757448103440,7.8878,4291.2,4291.1,0.3429]
[1757448104035,7.8878,4291.2,4291.1,0.5737]
[1757448104236,7.8878,4291.2,4291.1,0.797]
[1757448104442,2.61463437,4291.2,4291.1,5.03004]
[1757448104647,2.57813437,4291.2,4291.1,5.03004]
[1757448104943,5.26,4291.2,4291.1,4.68714]
[1757448105243,5.26,4291.2,4291.1,4.92114]
[1757448105641,5.26,4291.2,4291.1,0.92114]
[1757448105848,5.26,4291.2,4291.1,4.92114]
[1757448106248,5.26,4291.2,4291.1,4.92854]
[1757448106745,5.26,4291.2,4291.1,4.6955]
[1757448107247,5.5906,4291.2,4291.1,4.6955]
[1757448107945,5.26,4291.2,4291.1,4.6955]
[1757448110549,5.5906,4291.2,4291.1,4.6955]
[1757448111350,5.5906,4291.2,4291.1,5.11493]
[1757448111652,5.26,4291.2,4291.1,5.11493]
[1757448112446,4.79326771,4291.2,4291.1,5.11493]
[1757448112843,0.3306,4292.2,4292.1,0.41934]
[1757448113044,3.4906,4292.2,4292.1,3.86114]
[1757448113244,2.9611,4292.2,4292.1,7.86114]
[1757448113442,0.61169024,4293.5,4293.4,0.4481]
[1757448113751,5.77169024,4293.5,4293.4,0.6831]
[1757448114142,5.77169024,4293.5,4293.4,0.86959988]
[1757448114344,5.77169024,4293.5,4293.4,1.0136]
[1757448114550,5.16349024,4293.5,4293.4,1.0136]
[1757448114751,5.40099024,4293.5,4293.4,1.0136]
[1757448115147,5.54249024,4293.5,4293.4,1.0136]
[1757448115444,5.87309024,4293.5,4293.4,1.0136]
[1757448116556,5.87309024,4293.5,4293.4,1.29786817]
[1757448118253,5.87309024,4293.5,4293.4,1.71707817]
[1757448118458,5.16349024,4293.5,4293.4,1.71707817]
[1757448118657,5.16349024,4293.5,4293.4,5.71707817]
[1757448119852,5.49409024,4293.5,4293.4,5.71707817]
[1757448122867,5.23182191,4293.5,4293.4,1.71707817]
[1757448123168,4.99432191,4293.5,4293.4,1.71707817]
[1757448123366,4.66372191,4293.5,4293.4,1.71707817]
[1757448123567,4.66372191,4293.5,4293.4,6.51707817]
[1757448123764,4.99432191,4293.5,4293.4,6.51707817]
[1757448125164,4.66372191,4293.5,4293.4,6.51707817]
[1757448125764,0.9388,4294.0,4293.9,0.2171]
[1757448125965,5.9888,4294.0,4293.9,3.94316817]
[1757448129367,6.2488,4294.0,4293.9,3.94316817]
[1757448131870,9.9182,4294.0,4293.9,0.234]
[1757448132068,9.9182,4294.0,4293.4,3.2078]
[1757448132276,5.9182,4294.0,4293.5,0.234]
[1757448132460,0.4667,4293.6,4293.5,0.234]
[1757448132664,6.3481,4293.6,4293.5,0.234]
[1757448132866,6.0667,4293.6,4293.4,3.2078]
[1757448133065,4.4667,4293.5,4292.9,3.2078]
[1757448133262,5.2867,4293.5,4293.0,0.234]
[1757448133464,9.2867,4293.5,4293.1,0.234]
[1757448135071,5.2867,4293.5,4293.1,0.234]
[1757448136677,4.82,4293.5,4293.1,0.234]
[1757448136978,0.2439,4293.2,4293.1,0.234]
[1757448137175,5.1139,4293.2,4293.1,0.234]
[1757448139176,0.2439,4292.7,4292.6,33.9266]
[1757448139371,5.2639,4292.7,4292.6,34.1606]
[1757448141668,5.2058,4292.7,4292.6,34.1606]
[1757448142075,5.2639,4292.7,4292.6,34.1606]
[1757448143175,5.2058,4292.7,4292.6,34.1606]
[1757448144273,5.2639,4292.7,4292.6,33.9266]
[1757448144478,5.2639,4292.7,4292.6,34.1606]
[1757448145281,5.2058,4292.7,4292.6,34.1606]
[1757448146573,5.2639,4292.7,4292.6,33.56]
[1757448146772,9.2639,4292.7,4292.6,0.234]
[1757448147374,9.2639,4292.7,4292.6,0.6006]
[1757448154291,9.2058,4292.7,4292.6,0.8525]
[1757448155479,5.02,4292.7,4292.6,1.0698]
[1757448155981,5.2058,4292.7,4292.6,0.6185]
[1757448157694,5.2639,4292.7,4292.6,0.6185]
[1757448159091,5.2058,4292.7,4292.6,0.6185]
[1757448159389,5.2639,4292.7,4292.6,0.6185]
[1757448160886,5.2058,4292.7,4292.6,0.6185]
[1757448162692,5.2058,4292.7,4292.6,0.8358]
[1757448163290,5.1129,4292.7,4292.6,0.8358]
[1757448165096,5.2058,4292.7,4292.6,0.8358]
[1757448167110,5.2505,4292.7,4292.6,0.6185]
[1757448167905,5.2058,4292.7,4292.6,0.6185]
[1757448168708,5.2058,4292.7,4292.5,0.1392]
[1757448168903,0.0447,4292.5,4292.3,0.235]
[1757448169101,0.1877,4292.4,4292.3,0.235]
[1757448169406,5.2077,4292.4,4292.3,0.235]
[1757448170003,0.0447,4292.3,4292.1,0.3738]
[1757448170208,0.1877,4292.2,4291.9,3.2078]
[1757448170404,0.1877,4292.1,4292.0,0.6088]
[1757448170605,5.7877,4292.1,4292.0,0.6088]
[1757448170809,5.7877,4292.1,4292.0,0.235]
[1757448172012,5.7877,4292.1,4292.0,0.6088]
[1757448173712,5.7877,4292.1,4292.0,0.235]
[1757448176115,5.7877,4292.1,4292.0,0.7558]
[1757448176412,0.0447,4292.0,4291.5,0.147]
[1757448176616,4.8577,4292.0,4291.9,0.235]
[1757448177018,4.8577,4292.0,4291.9,0.1903]
[1757448178218,8.813,4292.0,4291.3,0.3738]
[1757448178419,4.67,4292.0,4291.5,0.235]
[1757448179116,4.67,4292.0,4291.4,0.235]
[1757448180519,4.67,4292.0,4291.9,0.8575]
[1757448180816,4.67,4292.0,4291.9,1.0925]
[1757448181211,4.67,4292.0,4291.9,0.845]
[1757448183319,4.67,4292.0,4291.9,0.61]
[1757448184020,4.67,4292.0,4291.9,0.3738]
[1757448184321,4.67,4292.0,4291.9,0.6088]
[1757448186023,4.67,4292.0,4291.6,0.3738]
[1757448186222,4.67,4292.0,4291.7,0.235]
[1757448186418,4.67,4292.0,4291.8,0.3738]
[1757448187815,4.67,4292.0,4291.7,0.6088]
[1757448189220,4.67,4292.0,4291.7,0.235]
[1757448189422,4.67,4292.0,4291.8,0.3738]
[1757448192919,4.67,4292.0,4291.7,0.4712]
[1757448193227,4.67,4292.0,4291.9,0.3738]
[1757448193429,4.67,4292.0,4291.9,0.61]
[1757448194131,4.67,4292.0,4291.9,0.3738]
[1757448196832,9.69975515,4292.0,4291.0,0.147]
[1757448197028,3.2078,4291.2,4290.8,0.3614]
[1757448197332,8.3778,4291.2,4290.8,0.3614]
[1757448197630,8.3778,4291.2,4290.4,3.4428]
[1757448197832,8.6138,4291.2,4290.5,0.5084]
[1757448199831,8.6138,4291.2,4290.6,0.236]
[1757448200227,8.6138,4291.2,4290.6,0.3614]
[1757448200427,3.2078,4290.7,4290.1,0.3614]
[1757448200634,8.5538,4290.7,4290.1,0.3614]
[1757448203436,8.5538,4290.7,4290.1,0.24]
[1757448203631,8.5538,4290.7,4290.0,0.387]
[1757448203836,8.5538,4290.7,4290.1,0.3614]
[1757448207930,8.5538,4290.7,4290.1,0.24]
[1757448208441,8.5538,4290.7,4290.1,0.3614]
[1757448209142,8.5538,4290.7,4290.1,0.24]
[1757448209336,8.5538,4290.7,4290.2,0.24]
[1757448209535,8.5538,4290.7,4290.3,0.6014]
[1757448209839,8.5538,4290.7,4290.4,0.3614]
[1757448210038,8.5538,4290.7,4290.5,0.145]
[1757448210238,8.5538,4290.7,4290.6,0.3614]
[1757448211342,8.3178,4290.7,4290.6,0.6014]
[1757448211535,8.5538,4290.7,4290.6,0.3614]
[1757448212235,8.5538,4290.7,4290.5,0.145]
[1757448212438,0.236,4290.6,4290.5,0.5064]
[1757448212643,5.116,4290.6,4290.5,0.5064]
[1757448215439,4.88,4290.6,4290.5,1.06302508]
[1757448215631,5.116,4290.6,4290.5,1.06302508]
[1757448219443,5.116,4290.6,4290.5,1.30642508]
[1757448220452,4.88,4290.6,4290.5,1.30642508]
[1757448223253,4.128,4290.6,4290.5,5.77549508]
[1757448223450,3.13597488,4290.6,4290.5,9.40278508]
[1757448224053,3.13597488,4290.6,4290.5,9.08616]
[1757448225753,3.13597488,4290.6,4290.5,8.85309]
[1757448225952,3.13377488,4290.6,4290.5,8.85309]
[1757448226855,3.13377488,4290.6,4290.5,9.14358201]
[1757448228050,3.13377488,4290.6,4290.5,8.99858201]
[1757448229158,3.13377488,4290.6,4290.5,5.79078201]
[1757448229357,3.13377488,4290.6,4290.5,8.99858201]
[1757448230260,3.13377488,4290.6,4290.5,8.99840374]
[1757448233257,3.72877488,4290.6,4290.5,4.21651374]
[1757448233456,3.96307488,4290.6,4290.5,4.21651374]
[1757448233951,3.96307488,4290.6,4290.5,0.77371374]
[1757448234156,3.96307488,4290.6,4290.5,0.52512954]
[1757448234358,3.96307488,4290.6,4290.5,0.29012954]
[1757448234558,3.96307488,4290.6,4290.5,0.52512954]
[1757448236056,7.17087488,4290.6,4290.5,0.29012954]
[1757448236261,0.8293,4289.7,4289.6,3.4535]
[1757448236560,5.4993,4289.7,4289.6,3.9151]
[1757448237258,5.4993,4289.7,4289.6,0.7073]
[1757448240261,5.4993,4289.7,4289.6,4.2051]
[1757448240559,5.6158,4289.7,4289.6,4.2051]
[1757448240952,5.1411,4289.7,4289.6,4.2051]
[1757448241362,4.7865,4289.7,4289.6,8.2051]
[1757448242355,4.7865,4289.7,4289.6,3.9701]
[1757448242562,5.6158,4289.7,4289.6,3.9151]
[1757448242762,5.6158,4289.7,4289.6,3.4428]
[1757448242964,5.6158,4289.7,4289.6,3.6885]
[1757448243262,5.2612,4289.7,4289.4,33.563]
[1757448243456,0.5047,4289.5,4289.4,33.563]
[1757448243763,5.9247,4289.5,4289.4,33.798]
[1757448247264,0.8293,4288.9,4288.8,0.4723]
[1757448247562,5.7093,4288.9,4288.8,0.9973]
[1757448248162,5.7093,4288.9,4288.8,1.28388604]
[1757448249267,5.7093,4288.9,4288.8,0.99388604]
[1757448249963,5.7093,4288.9,4288.8,0.52158604]
[1757448251072,5.7093,4288.9,4288.8,0.28658604]
[1757448251258,0.8293,4288.4,4288.3,3.2078]
[1757448251457,5.8393,4288.4,4288.3,3.4428]
[1757448251863,5.8393,4288.4,4288.3,3.6885]
[1757448252060,5.8393,4288.4,4288.3,0.4807]
[1757448252663,5.8393,4288.4,4288.3,3.6885]
[1757448253068,5.8393,4288.4,4288.3,0.4807]
[1757448253370,5.8393,4288.4,4288.3,0.235]
[1757448254271,5.8393,4288.4,4288.3,0.4807]
[1757448255159,5.8393,4288.4,4288.3,0.235]
[1757448257972,5.8393,4288.4,4288.3,4.3052]
[1757448258971,5.8393,4288.4,4288.3,1.0974]
[1757448260677,5.8393,4288.4,4288.3,0.7245]
[1757448260977,5.8393,4288.4,4288.3,1.0974]
[1757448261777,5.9558,4288.4,4288.3,1.0974]
[1757448262171,5.9558,4288.4,4288.3,0.4807]
[1757448262376,5.9558,4288.4,4288.3,0.235]
[1757448263077,0.4852,4288.0,4287.9,33.9459]
[1757448263280,5.8362,4288.0,4287.9,34.60064]
[1757448263480,5.9852,4288.0,4287.9,34.1809]
[1757448264082,5.9852,4288.0,4287.9,33.808]
[1757448265181,0.3362,4287.8,4287.3,2.88095872]
[1757448265378,0.8115,4287.5,4287.4,1.49739]
[1757448265578,6.2315,4287.5,4287.4,1.68571307]
[1757448266984,6.3805,4287.5,4287.4,1.26592307]
[1757448267582,0.8115,4287.2,4287.1,3.4337]
[1757448269278,5.5415,4287.2,4287.1,3.6687]
[1757448269883,5.5415,4287.2,4287.1,0.4609]
[1757448270083,5.5415,4287.2,4287.1,4.08852]
[1757448270681,5.5415,4287.2,4287.1,4.46142]
[1757448271384,5.5415,4287.2,4287.1,4.70522]
[1757448271587,5.3055,4287.2,4287.1,4.70522]
[1757448271890,4.73,4287.2,4287.1,4.70522]
[1757448273274,4.73,4287.2,4287.1,6.79347872]
[1757448273488,5.0662,4287.2,4287.1,6.79347872]
[1757448275087,5.5415,4287.2,4287.1,6.79347872]
[1757448275381,5.5415,4287.2,4287.1,2.54915872]
[1757448275582,5.5415,4287.2,4287.1,4.08852]
[1757448276892,5.5415,4287.2,4287.1,4.46142]
[1757448277188,5.5415,4287.2,4287.1,3.6687]
[1757448277582,5.5415,4287.2,4287.1,0.235]
[1757448281092,0.4753,4286.9,4286.8,33.584]
[1757448281279,5.7915,4286.9,4286.8,33.819]
[1757448281486,5.7915,4286.9,4286.8,0.235]
[1757448285892,5.9081,4286.9,4286.8,0.235]
[1757448290495,5.9081,4286.9,4286.8,1.0357]
[1757448291594,5.9081,4286.9,4286.8,1.45555]
[1757448291801,5.9081,4286.9,4286.8,1.11645]
[1757448291998,5.9081,4286.9,4286.8,0.6966]
[1757448294099,5.9081,4286.9,4286.8,1.0357]
[1757448294295,5.9081,4286.9,4286.8,1.45555]
[1757448294801,5.9081,4286.9,4286.8,1.0357]
[1757448296206,0.3564,4286.4,4286.3,2.08825872]
[1757448296504,6.1794,4286.4,4286.3,0.235]
[1757448296905,6.1794,4286.4,4286.3,0.4581]
[1757448297606,5.35,4286.4,4286.3,5.4556]
[1757448299107,5.35,4286.4,4286.3,7.5495859]
[1757448299308,5.35,4286.4,4286.3,5.4556]
[1757448299510,5.35,4286.4,4286.3,7.54976522]
[1757448299701,5.35,4286.4,4286.3,5.4556]
[1757448299902,6.1794,4286.4,4286.3,5.0357]
[1757448300098,6.1794,4286.4,4286.3,6.89485068]
[1757448300303,6.296,4286.4,4286.3,2.79075068]
[1757448300510,6.296,4286.4,4286.3,3.54975068]
[1757448300909,6.296,4286.4,4286.3,3.12985068]
[1757448301704,6.296,4286.4,4286.3,3.54975068]
[1757448301906,6.296,4286.4,4286.3,6.33765068]
[1757448302309,6.296,4286.4,4286.3,6.75755068]
[1757448303204,6.296,4286.4,4286.3,4.6634]
[1757448304710,6.296,4286.4,4286.3,4.2435]
[1757448304912,6.296,4286.4,4286.3,3.9044]
[1757448305116,6.296,4286.4,4286.3,2.09584209]
[1757448305415,6.296,4286.4,4286.1,0.235]
[1757448306011,0.8294,4286.2,4286.1,1.0357]
[1757448306319,6.1494,4286.2,4286.1,4.2435]
[1757448306625,6.1494,4286.2,4286.1,6.00024209]
[1757448307011,6.1494,4286.2,4286.0,5.30364209]
[1757448307213,0.8294,4286.1,4285.8,2.09584209]
[1757448307518,0.473,4285.9,4285.7,2.09584209]
[1757448307718,0.8294,4285.8,4285.7,2.09584209]
[1757448307912,0.8294,4285.8,4285.5,0.18345022]
[1757448307913,6.5894,4285.8,4285.5,0.18345022]
[1757448308108,6.5894,4285.8,4285.7,2.32049454]
[1757448308313,6.5894,4285.8,4285.7,2.55616952]
[1757448309221,6.5894,4285.8,4285.7,2.33306952]
[1757448310109,6.5894,4285.8,4285.7,2.09706952]
[1757448310316,6.5894,4285.8,4285.7,0.236]
[1757448314626,6.5894,4285.8,4285.7,0.4591]
[1757448314928,6.5894,4285.8,4285.7,0.236]
[1757448315129,6.5894,4285.8,4285.7,0.4591]
[1757448316330,6.5894,4285.8,4285.7,1.0367]
[1757448317928,6.5894,4285.8,4285.7,0.236]
[1757448318330,6.5764,4285.8,4285.7,0.236]
[1757448319129,0.484,4285.5,4285.4,33.591]
[1757448319329,5.404,4285.5,4285.4,33.827]
[1757448319728,5.404,4285.5,4285.4,33.591]
[1757448319928,5.404,4285.5,4285.4,33.827]
[1757448320622,5.5206,4285.5,4285.4,33.827]
[1757448322422,5.5206,4285.5,4285.4,34.1638]
[1757448324032,5.38,4285.5,4285.4,34.1638]
[1757448324229,5.0366,4285.5,4285.4,34.1638]
[1757448325232,5.0366,4285.5,4285.4,37.3716]
[1757448325730,5.38,4285.5,4285.4,37.3716]
[1757448326430,5.0366,4285.5,4285.4,37.66029392]
[1757448328033,5.38,4285.5,4285.4,37.66029392]
[1757448329223,5.38,4285.5,4285.4,34.45249392]
[1757448329427,5.38,4285.5,4285.4,34.1638]
[1757448330833,5.0366,4285.5,4285.4,34.58379]
[1757448331434,5.0366,4285.5,4285.4,34.1638]
[1757448331935,5.0366,4285.5,4285.4,34.58379]
[1757448332237,5.0366,4285.5,4285.4,34.1638]
[1757448334240,5.38,4285.5,4285.4,34.1638]
[1757448334437,5.0366,4285.5,4285.4,34.1638]
[1757448334637,5.0366,4285.5,4285.4,34.1628]
[1757448334839,5.0366,4285.5,4285.4,34.58279]
[1757448335243,5.0366,4285.5,4285.4,36.67985952]
[1757448335539,4.80901577,4285.5,4285.4,36.001626]
[1757448336434,4.80901577,4285.5,4285.4,33.48456648]
[1757448336640,4.80901577,4285.5,4285.4,36.0028582]
[1757448337041,4.80901577,4285.5,4285.4,33.90455648]
[1757448339848,4.80901577,4285.5,4285.4,33.48456648]
[1757448345451,4.80901577,4285.5,4285.4,33.90455648]
[1757448345652,4.58143827,4285.5,4285.4,33.48456648]
[1757448345853,4.58143827,4285.5,4285.4,33.58279]
[1757448346050,4.20217003,4285.5,4285.4,33.58279]